[Event "1st Easter Festival-A 2021"]
[Site "Bassano del Grappa"]
[Date "2021.04.03"]
[Round "6.2"]
[White "Basso, Pier Luigi"]
[Black "Checa, Nicolas"]
[Result "1/2-1/2"]
[ECO "D35"]
[WhiteElo "2521"]
[BlackElo "2546"]
[Annotator "ChessBase"]
[PlyCount "43"]
[EventDate "2021.04.01"]
[EventType "swiss"]
[EventCountry "ITA"]
[SourceTitle "playchess.com"]
[Source "ChessBase"]
[SourceQuality "1"]
[TimeControl "5400+30"]

1. d4 {[%emt 0:08:35]} Nf6 {[%emt 0:00:00]} 2. c4 {[%emt 0:01:40]} e6 {[%emt 0:01:40]} 3. Nc3 {[%emt 0:00:31]} d5 {[%emt 0:00:57]} 4. cxd5 {[%emt 0:00:05]} exd5 {[%emt 0:00:10]} 5. Bg5 {[%emt 0:00:03]} c6 {[%emt 0:00:07]} 6. e3 {[%emt 1:22:06]} Bf5 {[%emt 1:30:06]} 7. Qf3 {[%emt 0:00:00]} Bg6 {[%emt 0:00:30]} 8. Bxf6 {[%emt 0:00:00]} Qxf6 {[%emt 0:00:30]} 9. Qxf6 {[%emt 0:00:00]} gxf6 {[%emt 0:00:00]} 10. Nf3 {[%emt 0:00:00]} Nd7 {[%emt 0:00:00]} 11. Nh4 {[%emt 0:00:00]} Be7 {[%emt 0:00:00]} 12. Ne2 {[%emt 0:00:00]} f5 {[%emt 0:00:00]} 13. g3 {[%emt 0:00:00]} Bxh4 {[%emt 0:00:00]} 14. gxh4 {[%emt 0:00:00]} Nf6 {[%emt 0:00:00]} 15. Nf4 {[%emt 0:00:00]} Nh5 {[%emt 0:00:00]} 16. Be2 {[%emt 0:00:00]} Nxf4 {[%emt 0:00:00]} 17. exf4 {[%emt 0:00:00]} h5 {[%emt 0:00:00]} 18. Kd2 {[%emt 0:00:00]} Kd7 {[%emt 0:00:00]} 19. b4 {[%emt 0:00:00]} Kd6 {[%emt 0:00:00]} 20. Rhb1 {[%emt 0:00:00]} a6 {[%emt 0:00:00]} 21. a4 {[%emt 0:00:00]} Rhc8 {[%emt 0:00:00]} 22. a5 {[%emt 0:00:00]} 1/2-1/2

[Event "1st Easter Festival-A 2021"]
[Site "Bassano del Grappa"]
[Date "2021.04.03"]
[Round "6.3"]
[White "Dragnev, Valentin"]
[Black "Niemann, Hans Moke"]
[Result "1/2-1/2"]
[ECO "C89"]
[WhiteElo "2564"]
[BlackElo "2526"]
[Annotator "ChessBase"]
[PlyCount "101"]
[EventDate "2021.04.01"]
[EventType "swiss"]
[EventCountry "ITA"]
[SourceTitle "playchess.com"]
[Source "ChessBase"]
[SourceQuality "1"]
[TimeControl "5400+30"]

1. e4 {[%emt 0:00:27]} e5 {[%emt 0:04:08]} 2. Nf3 {[%emt 0:00:03]} Nc6 {[%emt 0:00:17]} 3. Bb5 {[%emt 0:00:07]} a6 {[%emt 0:01:17]} 4. Ba4 {[%emt 0:00:07]} Nf6 {[%emt 0:00:08]} 5. O-O {[%emt 0:00:05]} Be7 {[%emt 0:00:11]} 6. Re1 {[%emt 0:00:06]} b5 {[%emt 0:00:09]} 7. Bb3 {[%emt 0:00:01]} O-O {[%emt 0:00:11]} 8. c3 {[%emt 0:00:02]} d5 {[%emt 0:02:51]} 9. exd5 {[%emt 0:00:08]} Nxd5 {[%emt 0:00:11]} 10. Nxe5 {[%emt 0:00:04]} Nxe5 {[%emt 0:00:07]} 11. Rxe5 {[%emt 0:00:03]} c6 {[%emt 0:00:08]} 12. Re1 {[%emt 0:00:04]} Bd6 {[%emt 0:00:09]} 13. d3 {[%emt 0:00:05]} Bf5 {[%emt 0:00:47]} 14. Qf3 {[%emt 0:00:34]} Qh4 {[%emt 0:00:07]} 15. g3 {[%emt 0:00:12]} Qh3 {[%emt 0:00:07]} 16. Be3 {[%emt 0:00:19]} Bxd3 {[%emt 0:00:13]} 17. Nd2 {[%emt 0:00:09]} Qf5 {[%emt 0:00:17]} 18. Bd4 {[%emt 0:02:50]} Rfd8 {[%emt 0:05:21]} 19. a4 {[%emt 0:14:17]} Bf8 {[%emt 0:01:48]} 20. Qxf5 {[%emt 0:04:05]} Bxf5 {[%emt 0:00:10]} 21. axb5 {[%emt 0:00:15]} axb5 {[%emt 0:00:15]} 22. Bxd5 {[%emt 0:00:20]} cxd5 {[%emt 0:00:09]} 23. b4 {[%emt 0:00:11]} Re8 {[%emt 0:08:49]} 24. Rxe8 {[%emt 0:10:46]} Rxe8 {[%emt 0:00:07]} 25. f3 {[%emt 0:00:35]} f6 {[%emt 0:07:51]} 26. Nf1 {[%emt 0:00:49]} Re2 {[%emt 0:01:35]} 27. Ne3 {[%emt 0:01:54]} Bh3 {[%emt 0:02:39]} 28. Nxd5 {[%emt 0:08:12]} Rg2+ {[%emt 0:02:56]} 29. Kh1 {[%emt 0:00:04]} Bd6 {[%emt 0:00:15]} 30. Ra8+ {[%emt 0:24:49]} Kf7 {[%emt 0:00:10]} 31. Ra7+ {[%emt 0:00:32]} Ke6 {[%emt 0:07:18]} 32. Nxf6 {[%emt 0:07:24]} Rc2 {[%emt 0:03:39]} 33. Nxh7 {[%emt 0:06:29]} Be7 {[%emt 0:01:59]} 34. Rxe7+ {[%emt 0:00:44]} Kxe7 {[%emt 0:00:11]} 35. Ng5 {[%emt 0:00:08]} Rc1+ {[%emt 0:00:12]} 36. Bg1 {[%emt 0:00:03]} Bf1 {[%emt 0:04:47]} 37. Bc5+ {[%emt 0:04:13]} Kf6 {[%emt 0:00:28]} 38. h4 {[%emt 0:01:08]} Kf5 {[%emt 0:02:06]} 39. Bd4 {[%emt 0:00:56]} Bc4+ {[%emt 0:00:27]} 40. Kg2 {[%emt 0:00:23]} Rc2+ {[%emt 0:00:04]} 41. Kg1 {[%emt 0:00:18]} Rc1+ {[%emt 0:00:07]} 42. Kf2 {[%emt 0:00:21]} Rc2+ {[%emt 0:00:07]} 43. Ke1 {[%emt 0:00:22]} Re2+ {[%emt 0:00:07]} 44. Kd1 {[%emt 0:01:00]} Rg2 {[%emt 0:00:07]} 45. g4+ {[%emt 0:05:16]} Kf4 {[%emt 0:00:07]} 46. Bxg7 {[%emt 0:00:13]} Be2+ {[%emt 0:01:44]} 47. Ke1 {[%emt 0:00:49]} Bxf3 {[%emt 0:00:11]} 48. Nxf3 {[%emt 0:06:09]} Kxf3 {[%emt 0:00:09]} 49. h5 {[%emt 0:02:21]} Rxg4 {[%emt 0:00:11]} 50. h6 {[%emt 0:00:03]} Rh4 {[%emt 0:00:07]} 51. Kd2 {[%emt 0:00:12]} 1/2-1/2

[Event "1st Easter Festival-A 2021"]
[Site "Bassano del Grappa"]
[Date "2021.04.03"]
[Round "6.4"]
[White "Yu, Jennifer"]
[Black "Bjerre, Jonas Buhl"]
[Result "1/2-1/2"]
[ECO "E46"]
[WhiteElo "2275"]
[BlackElo "2549"]
[Annotator "ChessBase"]
[PlyCount "97"]
[EventDate "2021.04.01"]
[EventType "swiss"]
[EventCountry "ITA"]
[SourceTitle "playchess.com"]
[Source "ChessBase"]
[SourceQuality "1"]
[TimeControl "5400+30"]

1. d4 {[%emt 0:04:39]} Nf6 {[%emt 0:00:00]} 2. c4 {[%emt 0:00:32]} e6 {[%emt 0:00:00]} 3. Nc3 {[%emt 0:00:06]} Bb4 {[%emt 0:00:00]} 4. e3 {[%emt 0:00:23]} O-O {[%emt 0:00:04]} 5. Nge2 {[%emt 0:00:17]} Re8 {[%emt 0:00:08]} 6. a3 {[%emt 0:00:24]} Bf8 {[%emt 0:00:06]} 7. Ng3 {[%emt 0:00:25]} d5 {[%emt 0:00:27]} 8. Be2 {[%emt 0:00:12]} b6 {[%emt 0:00:52]} 9. O-O {[%emt 0:00:27]} Bb7 {[%emt 0:00:18]} 10. cxd5 {[%emt 0:00:29]} exd5 {[%emt 0:01:22]} 11. b4 {[%emt 0:00:31]} Nbd7 {[%emt 0:02:47]} 12. Qb3 {[%emt 0:00:20]} c6 {[%emt 0:04:36]} 13. f3 {[%emt 0:00:45]} Qc8 {[%emt 0:14:17]} 14. Rb1 {[%emt 0:07:55]} Rb8 {[%emt 0:04:27]} 15. e4 {[%emt 0:08:12]} c5 {[%emt 0:04:12]} 16. Nxd5 {[%emt 0:12:05]} Nxd5 {[%emt 0:02:18]} 17. exd5 {[%emt 0:00:06]} Nf6 {[%emt 0:02:48]} 18. Bc4 {[%emt 0:05:15]} cxd4 {[%emt 0:04:47]} 19. Rd1 {[%emt 0:11:16]} b5 {[%emt 0:07:07]} 20. Bxb5 {[%emt 0:00:16]} Bxd5 {[%emt 0:01:12]} 21. Qa4 {[%emt 0:05:34]} Re6 {[%emt 0:05:27]} 22. Bb2 {[%emt 0:07:39]} a6 {[%emt 0:07:16]} 23. Bf1 {[%emt 0:05:00]} Bc6 {[%emt 0:03:09]} 24. Qc2 {[%emt 0:05:57]} Qe8 {[%emt 0:07:46]} 25. Rxd4 {[%emt 0:02:55]} Ba4 {[%emt 0:02:13]} 26. Qd2 {[%emt 0:01:58]} Rc8 {[%emt 0:02:55]} 27. Bc4 {[%emt 0:02:03]} Re7 {[%emt 0:02:44]} 28. Nf5 {[%emt 0:03:18]} Rd7 {[%emt 0:02:24]} 29. Re1 {[%emt 0:05:22]} Qd8 {[%emt 0:05:06]} 30. Qg5 {[%emt 0:02:31]} Kh8 {[%emt 0:01:59]} 31. Rxd7 {[%emt 0:06:19]} Bxd7 {[%emt 0:01:07]} 32. Bd3 {[%emt 0:01:20]} Be6 {[%emt 0:02:12]} 33. Nd4 {[%emt 0:00:51]} Qb6 {[%emt 0:01:52]} 34. Kh1 {[%emt 0:00:33]} Bd7 {[%emt 0:01:06]} 35. Qh4 {[%emt 0:00:31]} Qd6 {[%emt 0:02:25]} 36. Bb1 {[%emt 0:00:29]} h6 {[%emt 0:00:53]} 37. Nf5 {[%emt 0:00:20]} Bxf5 {[%emt 0:01:23]} 38. Bxf5 {[%emt 0:00:04]} Rd8 {[%emt 0:00:51]} 39. Bxf6 {[%emt 0:00:59]} Qxf6 {[%emt 0:00:06]} 40. Qxf6 {[%emt 0:00:05]} gxf6 {[%emt 0:00:02]} 41. g3 {[%emt 0:00:27]} Kg7 {[%emt 0:02:44]} 42. Rc1 {[%emt 0:00:47]} a5 {[%emt 0:00:38]} 43. bxa5 {[%emt 0:00:42]} Rd5 {[%emt 0:00:13]} 44. Be4 {[%emt 0:00:59]} Rxa5 {[%emt 0:00:19]} 45. Rc7 {[%emt 0:00:04]} Bxa3 {[%emt 0:00:26]} 46. Bd3 {[%emt 0:00:14]} Bd6 {[%emt 0:01:26]} 47. Rd7 {[%emt 0:00:13]} Bc5 {[%emt 0:00:08]} 48. Bc4 {[%emt 0:00:46]} Ra7 {[%emt 0:00:05]} 49. Rxa7 {[%emt 0:00:07]} 1/2-1/2

[Event "1st Easter Festival-A 2021"]
[Site "Bassano del Grappa"]
[Date "2021.04.03"]
[Round "6.5"]
[White "Travadon, Loic"]
[Black "Sonis, Francesco"]
[Result "0-1"]
[ECO "E52"]
[WhiteElo "2414"]
[BlackElo "2477"]
[Annotator "ChessBase"]
[PlyCount "136"]
[EventDate "2021.04.01"]
[EventType "swiss"]
[EventCountry "ITA"]
[SourceTitle "playchess.com"]
[Source "ChessBase"]
[SourceQuality "1"]
[TimeControl "5400+30"]

1. d4 {[%emt 0:03:42]} Nf6 {[%emt 0:00:00]} 2. c4 {[%emt 0:00:05]} e6 {[%emt 0:00:00]} 3. Nc3 {[%emt 0:00:04]} Bb4 {[%emt 0:00:04]} 4. Nf3 {[%emt 0:00:05]} d5 {[%emt 0:00:07]} 5. Bd2 {[%emt 0:00:04]} O-O {[%emt 0:00:07]} 6. e3 {[%emt 0:00:03]} b6 {[%emt 0:00:05]} 7. cxd5 {[%emt 0:00:04]} exd5 {[%emt 0:00:04]} 8. Bd3 {[%emt 0:00:04]} Bb7 {[%emt 0:01:15]} 9. O-O {[%emt 0:00:09]} Be7 {[%emt 0:00:03]} 10. Ne5 {[%emt 0:00:10]} c5 {[%emt 0:00:07]} 11. Qf3 {[%emt 0:00:24]} Nc6 {[%emt 0:08:28]} 12. Qh3 {[%emt 0:00:13]} cxd4 {[%emt 0:15:51]} 13. exd4 {[%emt 0:00:16]} Nxd4 {[%emt 0:00:11]} 14. Nd7 {[%emt 0:00:09]} g6 {[%emt 0:00:03]} 15. Nxf8 {[%emt 0:00:15]} Bxf8 {[%emt 0:00:15]} 16. Rfe1 {[%emt 0:04:47]} Bg7 {[%emt 0:26:07]} 17. Rad1 {[%emt 0:02:12]} Nd7 {[%emt 0:08:11]} 18. Bh6 {[%emt 0:00:43]} Bxh6 {[%emt 0:02:16]} 19. Qxh6 {[%emt 0:00:10]} Qf6 {[%emt 0:00:21]} 20. Ba6 {[%emt 0:02:53]} Nf5 {[%emt 0:04:24]} 21. Qf4 {[%emt 0:05:16]} Bxa6 {[%emt 0:02:09]} 22. Nxd5 {[%emt 0:00:04]} Qxb2 {[%emt 0:00:36]} 23. Nc7 {[%emt 0:00:55]} Rd8 {[%emt 0:02:11]} 24. Nxa6 {[%emt 0:00:31]} Qxa2 {[%emt 0:02:00]} 25. Qc7 {[%emt 0:01:01]} Rf8 {[%emt 0:00:08]} 26. Ra1 {[%emt 0:00:56]} Qd5 {[%emt 0:00:14]} 27. Red1 {[%emt 0:00:14]} Nd4 {[%emt 0:00:08]} 28. Nb4 {[%emt 0:00:20]} Qe4 {[%emt 0:04:45]} 29. Qxd7 {[%emt 0:05:28]} Ne2+ {[%emt 0:00:04]} 30. Kh1 {[%emt 0:01:26]} Qxb4 {[%emt 0:00:17]} 31. Qd2 {[%emt 0:01:22]} Qe7 {[%emt 0:09:44]} 32. Qe3 {[%emt 0:02:09]} Re8 {[%emt 0:02:05]} 33. Qxe7 {[%emt 0:00:41]} Rxe7 {[%emt 0:00:04]} 34. Rd8+ {[%emt 0:00:13]} Kg7 {[%emt 0:00:02]} 35. g3 {[%emt 0:00:48]} Nc3 {[%emt 0:00:14]} 36. Rd3 {[%emt 0:00:50]} Ne4 {[%emt 0:00:19]} 37. Kg2 {[%emt 0:00:04]} Nc5 {[%emt 0:00:04]} 38. Rda3 {[%emt 0:00:49]} a5 {[%emt 0:00:05]} 39. Rb1 {[%emt 0:00:23]} Re6 {[%emt 0:00:04]} 40. Ra2 {[%emt 0:00:37]} Kf6 {[%emt 0:00:24]} 41. Rab2 {[%emt 0:00:24]} Nd7 {[%emt 0:00:32]} 42. Rd2 {[%emt 0:01:10]} Ke7 {[%emt 0:00:27]} 43. Rbd1 {[%emt 0:00:19]} Nc5 {[%emt 0:00:04]} 44. Rd8 {[%emt 0:00:14]} h5 {[%emt 0:02:14]} 45. Rb8 {[%emt 0:00:09]} Kf6 {[%emt 0:00:55]} 46. Rb1 {[%emt 0:00:18]} Nd7 {[%emt 0:01:01]} 47. Rc8 {[%emt 0:00:30]} Rd6 {[%emt 0:00:16]} 48. Rb3 {[%emt 0:00:31]} Nc5 {[%emt 0:01:55]} 49. Rf3+ {[%emt 0:00:20]} Kg7 {[%emt 0:00:15]} 50. Re8 {[%emt 0:00:59]} Rd7 {[%emt 0:00:20]} 51. h3 {[%emt 0:00:54]} Ra7 {[%emt 0:01:26]} 52. Rb8 {[%emt 0:02:45]} Nd7 {[%emt 0:00:05]} 53. Rc8 {[%emt 0:00:39]} a4 {[%emt 0:01:10]} 54. Rc1 {[%emt 0:02:03]} Nc5 {[%emt 0:01:00]} 55. Rc2 {[%emt 0:03:13]} Nb3 {[%emt 0:00:44]} 56. Ra2 {[%emt 0:00:44]} b5 {[%emt 0:01:17]} 57. Rf4 {[%emt 0:00:13]} Nc5 {[%emt 0:02:21]} 58. Rb4 {[%emt 0:00:19]} Ra5 {[%emt 0:00:03]} 59. Rab2 {[%emt 0:03:06]} a3 {[%emt 0:01:16]} 60. Rb1 {[%emt 0:02:08]} Na6 {[%emt 0:00:45]} 61. R4b3 {[%emt 0:00:31]} b4 {[%emt 0:00:09]} 62. Kf3 {[%emt 0:23:17]} Ra4 {[%emt 0:00:10]} 63. Ra1 {[%emt 0:01:05]} Nc5 {[%emt 0:00:18]} 64. Rbb1 {[%emt 0:00:09]} b3 {[%emt 0:00:41]} 65. Ke3 {[%emt 0:03:36]} a2 {[%emt 0:00:41]} 66. Rb2 {[%emt 0:00:02]} Rb4 {[%emt 0:00:08]} 67. Raxa2 {[%emt 0:01:01]} bxa2 {[%emt 0:00:09]} 68. Rxa2 {[%emt 0:00:03]} Rb3+ {[%emt 0:00:32]} 0-1

[Event "1st Easter Festival-A 2021"]
[Site "Bassano del Grappa"]
[Date "2021.04.03"]
[Round "6.6"]
[White "Lumachi, Gabriele"]
[Black "Moroni, Luca Jr"]
[Result "0-1"]
[ECO "B07"]
[WhiteElo "2316"]
[BlackElo "2552"]
[Annotator "ChessBase"]
[PlyCount "66"]
[EventDate "2021.04.01"]
[EventType "swiss"]
[EventCountry "ITA"]
[SourceTitle "playchess.com"]
[Source "ChessBase"]
[SourceQuality "1"]
[TimeControl "5400+30"]

1. d4 {[%emt 0:00:00]} d6 {[%emt 0:02:00]} 2. e4 {[%emt 0:00:00]} Nf6 {[%emt 0:00:05]} 3. Nc3 {[%emt 0:00:00]} g6 {[%emt 0:00:02]} 4. Be3 {[%emt 0:00:46]} Bg7 {[%emt 0:00:03]} 5. Qd2 {[%emt 0:00:06]} O-O {[%emt 0:00:05]} 6. O-O-O {[%emt 0:00:19]} c6 {[%emt 0:00:02]} 7. f3 {[%emt 0:00:12]} b5 {[%emt 0:00:03]} 8. h4 {[%emt 0:00:10]} Qa5 {[%emt 0:00:02]} 9. Kb1 {[%emt 0:02:06]} b4 {[%emt 0:00:05]} 10. Nce2 {[%emt 0:00:08]} h5 {[%emt 0:00:33]} 11. g4 {[%emt 0:03:10]} hxg4 {[%emt 0:04:54]} 12. h5 {[%emt 0:01:34]} Nxh5 {[%emt 0:05:50]} 13. Bh6 {[%emt 0:00:35]} Bf6 {[%emt 0:07:17]} 14. Nf4 {[%emt 0:42:05]} Nxf4 {[%emt 0:17:57]} 15. Bxf4 {[%emt 0:09:34]} Be6 {[%emt 0:02:19]} 16. d5 {[%emt 0:03:58]} cxd5 {[%emt 0:03:00]} 17. exd5 {[%emt 0:00:44]} Bf5 {[%emt 0:07:15]} 18. fxg4 {[%emt 0:07:06]} Bxg4 {[%emt 0:05:14]} 19. Bg5 {[%emt 0:03:48]} Be5 {[%emt 0:09:33]} 20. Re1 {[%emt 0:07:32]} Bg7 {[%emt 0:14:36]} 21. Bh6 {[%emt 0:04:59]} Bf6 {[%emt 0:00:56]} 22. Bxf8 {[%emt 0:09:57]} Kxf8 {[%emt 0:00:19]} 23. Re4 {[%emt 0:01:18]} Bf5 {[%emt 0:02:15]} 24. Rxb4 {[%emt 0:00:04]} Qc5 {[%emt 0:02:29]} 25. Rc4 {[%emt 0:00:28]} Qb6 {[%emt 0:00:17]} 26. Rb4 {[%emt 0:00:07]} Qc5 {[%emt 0:01:16]} 27. Rb5 {[%emt 0:00:52]} Qc7 {[%emt 0:00:46]} 28. Bh3 {[%emt 0:00:57]} Be4 {[%emt 0:02:24]} 29. Bg2 {[%emt 0:00:06]} Bxg2 {[%emt 0:00:33]} 30. Qxg2 {[%emt 0:00:10]} Nd7 {[%emt 0:00:19]} 31. Nf3 {[%emt 0:00:21]} Qc4 {[%emt 0:01:43]} 32. Rb7 {[%emt 0:00:16]} Nc5 {[%emt 0:01:38]} 33. Rc7 {[%emt 0:01:39]} Rb8 {[%emt 0:02:12]} 0-1

[Event "1st Easter Festival-A 2021"]
[Site "Bassano del Grappa"]
[Date "2021.04.03"]
[Round "6.6"]
[White "Fischer, Daniel"]
[Black "Palozza, Christian"]
[Result "*"]
[ECO "B07"]
[WhiteElo "2276"]
[BlackElo "2263"]
[Annotator "ChessBase"]
[PlyCount "20"]
[EventDate "2021.04.01"]
[EventType "swiss"]
[EventCountry "ITA"]
[SourceTitle "playchess.com"]
[Source "ChessBase"]
[SourceQuality "1"]
[TimeControl "5400+30"]

1. d4 {[%emt 0:00:00]} d6 {[%emt 0:02:00]} 2. e4 {[%emt 0:00:00]} Nf6 {[%emt 0:00:05]} 3. Nc3 {[%emt 0:00:00]} g6 {[%emt 0:00:02]} 4. Be3 {[%emt 0:00:46]} Bg7 {[%emt 0:00:03]} 5. Qd2 {[%emt 0:00:06]} O-O {[%emt 0:00:05]} 6. O-O-O {[%emt 0:00:19]} c6 {[%emt 0:00:02]} 7. f3 {[%emt 0:00:12]} b5 {[%emt 0:00:03]} 8. h4 {[%emt 0:00:10]} Qa5 {[%emt 0:00:02]} 9. Kb1 {[%emt 0:02:06]} b4 {[%emt 0:00:05]} 10. Nce2 {[%emt 0:00:08]} h5 {[%emt 0:00:33]} *

[Event "1st Easter Festival-A 2021"]
[Site "Bassano del Grappa"]
[Date "2021.04.03"]
[Round "6.7"]
[White "Solomon, Kenny"]
[Black "Dardha, Daniel"]
[Result "0-1"]
[ECO "E17"]
[WhiteElo "2357"]
[BlackElo "2516"]
[Annotator "ChessBase"]
[PlyCount "86"]
[EventDate "2021.04.01"]
[EventType "swiss"]
[EventCountry "ITA"]
[SourceTitle "playchess.com"]
[Source "ChessBase"]
[SourceQuality "1"]
[TimeControl "5400+30"]

1. d4 {[%emt 0:00:00]} Nf6 {[%emt 0:07:51]} 2. c4 {[%emt 0:00:00]} e6 {[%emt 0:00:08]} 3. Nf3 {[%emt 0:00:00]} b6 {[%emt 0:00:19]} 4. g3 {[%emt 0:00:08]} Bb7 {[%emt 0:00:13]} 5. Bg2 {[%emt 0:00:08]} Be7 {[%emt 0:00:11]} 6. O-O {[%emt 0:00:11]} O-O {[%emt 0:00:07]} 7. Nc3 {[%emt 0:00:04]} Na6 {[%emt 0:00:32]} 8. Re1 {[%emt 0:01:56]} d5 {[%emt 0:01:10]} 9. cxd5 {[%emt 0:00:58]} exd5 {[%emt 0:00:07]} 10. Bf4 {[%emt 0:04:02]} c5 {[%emt 0:01:17]} 11. Rc1 {[%emt 0:03:17]} Ne4 {[%emt 0:01:10]} 12. dxc5 {[%emt 0:02:01]} Naxc5 {[%emt 0:00:20]} 13. Be5 {[%emt 0:01:37]} Re8 {[%emt 0:01:35]} 14. Rc2 {[%emt 0:19:55]} Bf8 {[%emt 0:04:36]} 15. Bd4 {[%emt 0:12:17]} Ne6 {[%emt 0:02:25]} 16. a3 {[%emt 0:00:12]} Rc8 {[%emt 0:02:27]} 17. Be5 {[%emt 0:11:09]} a6 {[%emt 0:08:44]} 18. Bh3 {[%emt 0:05:55]} Rc4 {[%emt 0:04:32]} 19. b3 {[%emt 0:10:27]} Rc5 {[%emt 0:03:52]} 20. Bxe6 {[%emt 0:04:50]} Rxe6 {[%emt 0:00:59]} 21. Bd4 {[%emt 0:01:27]} Rc8 {[%emt 0:02:03]} 22. Nb1 {[%emt 0:01:17]} Rxc2 {[%emt 0:02:55]} 23. Qxc2 {[%emt 0:00:01]} Rc6 {[%emt 0:00:09]} 24. Qd3 {[%emt 0:00:56]} Qc8 {[%emt 0:00:14]} 25. Kg2 {[%emt 0:00:49]} a5 {[%emt 0:03:30]} 26. Qe3 {[%emt 0:04:52]} b5 {[%emt 0:06:30]} 27. Ne5 {[%emt 0:01:27]} Rc2 {[%emt 0:02:17]} 28. f3 {[%emt 0:04:46]} Nd6 {[%emt 0:00:57]} 29. g4 {[%emt 0:00:01]} b4 {[%emt 0:03:22]} 30. a4 {[%emt 0:01:25]} Ba6 {[%emt 0:01:10]} 31. Kg3 {[%emt 0:00:13]} Qe6 {[%emt 0:02:02]} 32. Kf2 {[%emt 0:02:10]} Be7 {[%emt 0:03:48]} 33. Kg3 {[%emt 0:00:02]} h6 {[%emt 0:09:17]} 34. Nd3 {[%emt 0:00:22]} Qg6 {[%emt 0:01:42]} 35. Kh3 {[%emt 0:00:21]} Bg5 {[%emt 0:03:01]} 36. f4 {[%emt 0:03:17]} Bd8 {[%emt 0:02:52]} 37. Ne5 {[%emt 0:02:58]} Qe4 {[%emt 0:01:37]} 38. Qxe4 {[%emt 0:00:09]} Nxe4 {[%emt 0:00:47]} 39. Nd3 {[%emt 0:00:38]} Bc7 {[%emt 0:02:58]} 40. Be3 {[%emt 0:01:06]} d4 {[%emt 0:02:14]} 41. Bxd4 {[%emt 0:01:37]} Bxd3 {[%emt 0:00:14]} 42. exd3 {[%emt 0:00:02]} Bxf4 {[%emt 0:00:08]} 43. g5 {[%emt 0:01:29]} h5 {[%emt 0:00:13]} 0-1

[Event "1st Easter Festival-A 2021"]
[Site "Bassano del Grappa"]
[Date "2021.04.03"]
[Round "6.8"]
[White "Fischer, Daniel"]
[Black "Palozza, Christian"]
[Result "0-1"]
[ECO "B12"]
[WhiteElo "2276"]
[BlackElo "2263"]
[Annotator "ChessBase"]
[PlyCount "88"]
[EventDate "2021.04.01"]
[EventType "swiss"]
[EventCountry "ITA"]
[SourceTitle "playchess.com"]
[Source "ChessBase"]
[SourceQuality "1"]
[TimeControl "5400+30"]

1. e4 {[%emt 0:00:00]} c6 {[%emt 0:00:00]} 2. d4 {[%emt 0:00:00]} d5 {[%emt 0:00:00]} 3. e5 {[%emt 0:00:00]} c5 {[%emt 0:00:00]} 4. dxc5 {[%emt 0:00:00]} e6 {[%emt 0:00:00]} 5. a3 {[%emt 0:00:05]} Bxc5 {[%emt 0:00:00]} 6. Qg4 {[%emt 0:00:36]} Ne7 {[%emt 0:00:00]} 7. Nf3 {[%emt 0:00:58]} Qb6 {[%emt 0:00:03]} 8. Bd3 {[%emt 0:16:04]} Bxf2+ {[%emt 0:00:06]} 9. Ke2 {[%emt 0:00:25]} a5 {[%emt 0:00:09]} 10. Nc3 {[%emt 0:08:42]} Bd7 {[%emt 0:01:43]} 11. Na4 {[%emt 0:14:05]} Bxa4 {[%emt 0:13:04]} 12. Qxa4+ {[%emt 0:00:05]} Nec6 {[%emt 0:00:15]} 13. Rf1 {[%emt 0:06:31]} Bc5 {[%emt 0:00:17]} 14. Ng5 {[%emt 0:01:09]} Nd7 {[%emt 0:01:24]} 15. Nxf7 {[%emt 0:04:53]} Rf8 {[%emt 0:00:34]} 16. Bg5 {[%emt 0:17:11]} Rxf7 {[%emt 0:09:14]} 17. Rxf7 {[%emt 0:00:59]} Qxb2 {[%emt 0:00:06]} 18. Raf1 {[%emt 0:05:10]} Qxe5+ {[%emt 0:00:27]} 19. Kd1 {[%emt 0:00:07]} Qxg5 {[%emt 0:00:22]} 20. Qb5 {[%emt 0:01:23]} Qg4+ {[%emt 0:05:12]} 21. Ke1 {[%emt 0:01:52]} O-O-O {[%emt 0:09:03]} 22. Rxd7 {[%emt 0:00:33]} Rxd7 {[%emt 0:00:01]} 23. Qxc5 {[%emt 0:00:08]} Kc7 {[%emt 0:02:11]} 24. Bb5 {[%emt 0:03:33]} Qh4+ {[%emt 0:10:43]} 25. Kd1 {[%emt 0:03:28]} Qe7 {[%emt 0:01:54]} 26. Qc3 {[%emt 0:01:47]} d4 {[%emt 0:01:11]} 27. Qe1 {[%emt 0:02:58]} Qxa3 {[%emt 0:02:54]} 28. Qxe6 {[%emt 0:00:28]} Re7 {[%emt 0:07:03]} 29. Rf7 {[%emt 0:01:01]} Kb6 {[%emt 0:03:46]} 30. Rxe7 {[%emt 0:02:08]} Qxe7 {[%emt 0:00:07]} 31. Qd5 {[%emt 0:01:06]} Qc5 {[%emt 0:00:08]} 32. Bxc6 {[%emt 0:00:09]} bxc6 {[%emt 0:00:05]} 33. Qd8+ {[%emt 0:00:45]} Kb5 {[%emt 0:00:26]} 34. Qb8+ {[%emt 0:00:16]} Qb6 {[%emt 0:00:05]} 35. Qe5+ {[%emt 0:00:15]} Ka6 {[%emt 0:05:04]} 36. Qxg7 {[%emt 0:00:26]} Qb1+ {[%emt 0:01:09]} 37. Kd2 {[%emt 0:00:10]} Qb4+ {[%emt 0:00:04]} 38. Kd1 {[%emt 0:03:27]} a4 {[%emt 0:07:51]} 39. Qc7 {[%emt 0:01:20]} Qc4 {[%emt 0:03:10]} 40. Qc8+ {[%emt 0:01:19]} Ka5 {[%emt 0:00:16]} 41. Qc7+ {[%emt 0:01:42]} Kb4 {[%emt 0:00:40]} 42. Kd2 {[%emt 0:01:10]} Ka3 {[%emt 0:01:32]} 43. g4 {[%emt 0:01:47]} c5 {[%emt 0:00:55]} 44. Kc1 {[%emt 0:00:46]} d3 {[%emt 0:00:34]} 0-1